lending/lending_fUSD_20250114
["ID","MTS","AMOUNT","RATE_DAILY","PERIOD"]
[348950690,1736889044997,-500.0,0.00010271,2]
[348950691,1736889045006,-2416.88,0.00010271,2]
[348950692,1736889045015,-500.0,0.00010271,2]
[348950693,1736889045026,-1337.68,0.00010271,2]
[348950694,1736889045035,-500.0,0.00010271,2]
[348950695,1736889045045,-902.28,0.00010271,2]
[348950696,1736889045055,-500.0,0.00010271,2]
[348950697,1736889045064,-500.0,0.00010271,2]
[348950698,1736889045074,-549.52,0.00010271,2]
[348950699,1736889045083,-746.11,0.00010271,2]
[348950700,1736889045092,-500.0,0.00010271,2]
[348950701,1736889045286,-500.0,0.00010271,2]
[348950702,1736889045296,-1458.52,0.00010271,2]
[348950703,1736889045307,-512.3693306,0.00010271,2]
[348950704,1736889045317,-500.0,0.00010271,2]
[348950705,1736889045327,-1031.97,0.00010271,2]
[348950706,1736889045336,-811.67,0.00010271,2]
[348950707,1736889045345,-500.0,0.00010271,2]
[348950708,1736889045354,-791.8,0.00010271,2]
[348950709,1736889045363,-500.0,0.00010271,2]
[348950710,1736889045373,-1951.46,0.00010271,2]
[348950711,1736889045383,-666.04,0.00010271,2]
[348950712,1736889045392,-904.14,0.00010271,2]
[348950713,1736889045402,-500.0,0.00010271,2]
[348950714,1736889045411,-520.84,0.00010271,2]
[348950715,1736889045420,-1390.08,0.00010271,2]
[348950716,1736889045429,-564.24,0.00010271,2]
[348950717,1736889045439,-1622.18,0.00010271,2]
[348950718,1736889045449,-1177.2,0.00010271,2]
[348950719,1736889045458,-849.08,0.00010271,2]
[348950720,1736889045468,-500.0,0.00010271,2]
[348950721,1736889045477,-500.0,0.00010271,2]
[348950722,1736889045486,-500.0,0.00010271,2]
[348950723,1736889045495,-2184.92,0.00010271,2]
[348950724,1736889045505,-500.0,0.00010271,2]
[348950725,1736889045514,-500.0,0.00010271,2]
[348950726,1736889045523,-915.88,0.00010271,2]
[348950728,1736889045532,-887.61,0.00010271,2]
[348950730,1736889045541,-500.0,0.00010271,2]
[348950732,1736889045552,-500.0,0.00010271,2]
[348950734,1736889045561,-644.34,0.00010271,2]
[348950735,1736889045573,-500.0,0.00010271,2]
[348950736,1736889045584,-500.0,0.00010271,2]
[348950737,1736889045594,-500.0,0.00010271,2]
[348950738,1736889045604,-608.71,0.00010271,2]
[348950739,1736889045617,-500.0,0.00010271,2]
[348950740,1736889045627,-217.91069669,0.00010271,2]
[348950741,1736889045637,-500.0,0.00010271,2]
[348950743,1736889045647,-865.61,0.00010271,2]
[348950744,1736889045656,-3425.73,0.00010271,2]
[348950745,1736889045665,-1114.79,0.00010271,2]
[348950746,1736889045676,-500.0,0.00010273,2]
[348950747,1736889045685,-541.2,0.00010273,2]
[348950748,1736889045695,-1511.81,0.00010273,2]
[348950749,1736889045706,-709.29,0.00010273,2]
[348950750,1736889045716,-500.0,0.00010273,2]
[348950751,1736889045726,-500.0,0.00010273,2]
[348950752,1736889045736,-429.93842545,0.0001028,2]
[348950753,1736889045747,-352.88,0.00010297,2]
[348950754,1736889045756,-772.32,0.000103,2]
[348950755,1736889045765,-438.01,0.000103,2]
[348950756,1736889045775,-772.32,0.000103,2]
[348950757,1736889045784,-438.01,0.000103,2]
[348950758,1736889045793,-438.01,0.000103,2]
[348950759,1736889045803,-772.32,0.000103,2]
[348950760,1736889045812,-772.32,0.000103,2]
[348950761,1736889045821,-438.01,0.000103,2]
[348950762,1736889045831,-1928.70295496,0.00010314,2]
[348950763,1736889045840,-454.0,0.00010329,2]
[348950764,1736889045849,-162.05,0.00010381,2]
[348950765,1736889045859,-150.0,0.00010381,2]
[348950766,1736889045868,-150.0,0.00010381,2]
[348950767,1736889045878,-150.0,0.00010381,2]
[348950768,1736889045887,-150.0,0.00010381,2]
[348950769,1736889045896,-150.0,0.00010381,2]
[348950770,1736889045904,-150.0,0.00010381,2]
[348950771,1736889045914,-150.0,0.00010381,2]
[348950772,1736889045923,-3000.0,0.0001043,2]
[348950773,1736889045933,-409.58,0.00010437,2]
[348950774,1736889045942,-1280.1686,0.00010442,2]
[348950775,1736889045951,-500.0,0.00010499,2]
[348950776,1736889045960,-36966.39341402,0.000105,2]
[348950777,1736889045970,-302.22,0.000105,2]
[348950778,1736889045979,-500.0,0.00010545,2]
[348950779,1736889045989,-500.0,0.00010545,2]
[348950780,1736889045998,-500.0,0.00010545,2]
[348950781,1736889046007,-558.26,0.00010545,2]
[348950782,1736889046016,-500.0,0.00010545,2]
[348950783,1736889046026,-500.0,0.00010545,2]
[348950784,1736889046035,-500.0,0.00010545,2]
[348950785,1736889046044,-500.0,0.00010545,2]
[348950786,1736889046054,-874.13,0.00010545,2]
[348950787,1736889046063,-500.0,0.00010545,2]
[348950788,1736889046073,-537.73,0.00010545,2]
[348950789,1736889046082,-573.18,0.00010545,2]
[348950790,1736889046092,-320.91303846,0.00010545,2]
[348950791,1736889046101,-500.0,0.00010545,2]
[348950792,1736889046111,-960.98,0.00010545,2]
[348950793,1736889046120,-500.0,0.00010545,2]
[348950794,1736889046130,-238.81,0.00010545,2]
[348950795,1736889046140,-500.0,0.00010545,2]
[348950796,1736889046149,-500.0,0.00010545,2]
[348950797,1736889046158,-1585.52,0.00010545,2]
[348950798,1736889046168,-500.0,0.00010545,2]
[348950799,1736889046178,-500.0,0.00010545,2]
[348950800,1736889046187,-465.46020656,0.00010545,2]
[348950801,1736889046196,-500.0,0.00010545,2]
[348950802,1736889046206,-500.0,0.00010545,2]
[348950803,1736889046215,-500.0,0.00010545,2]
[348950804,1736889046223,-500.0,0.00010545,2]
[348950805,1736889046233,-500.0,0.00010545,2]
[348950806,1736889046242,-878.16,0.00010545,2]
[348950807,1736889046251,-500.0,0.00010545,2]
[348950808,1736889046261,-500.0,0.00010545,2]
[348950809,1736889046270,-500.0,0.00010545,2]
[348950810,1736889046279,-500.0,0.00010545,2]
[348950811,1736889046289,-500.0,0.00010545,2]
[348950812,1736889046298,-663.982168,0.00010545,2]
[348950813,1736889046308,-736.51,0.00010545,2]
[348950814,1736889046317,-500.0,0.00010545,2]
[348950815,1736889046327,-500.0,0.00010545,2]
[348950816,1736889046336,-500.0,0.00010545,2]
[348950817,1736889046345,-500.0,0.00010545,2]
[348950818,1736889046355,-562.02,0.00010545,2]
[348950819,1736889046364,-500.0,0.00010545,2]
[348950820,1736889046375,-500.0,0.00010545,2]
[348950821,1736889046385,-1516.14,0.00010545,2]
[348950822,1736889046394,-654.425542,0.00010545,2]
[348950823,1736889046403,-500.0,0.00010545,2]
[348950824,1736889046412,-500.0,0.00010545,2]
[348950825,1736889046421,-2415.41,0.00010545,2]
[348950826,1736889046430,-500.0,0.00010545,2]
[348950827,1736889046440,-589.3,0.00010545,2]
[348950828,1736889046449,-500.0,0.00010545,2]
[348950829,1736889046458,-792.69,0.00010545,2]
[348950830,1736889046467,-500.0,0.00010545,2]
[348950831,1736889046476,-500.0,0.00010545,2]
[348950832,1736889046486,-609.48,0.00010545,2]
[348950833,1736889046495,-500.0,0.00010545,2]
[348950834,1736889046504,-500.0,0.00010545,2]
[348950835,1736889046514,-756.05,0.00010545,2]
[348950836,1736889046523,-500.0,0.00010545,2]
[348950837,1736889046532,-500.0,0.00010545,2]
[348950838,1736889046541,-500.0,0.00010545,2]
[348950839,1736889046550,-500.0,0.00010545,2]
[348950840,1736889046560,-500.0,0.00010545,2]
[348950841,1736889046573,-500.0,0.00010545,2]
[348950842,1736889046583,-2019.75,0.00010545,2]
[348950843,1736889046592,-500.0,0.00010545,2]
[348950844,1736889046601,-544.83,0.00010545,2]
[348950845,1736889046611,-500.0,0.00010545,2]
[348950846,1736889046622,-500.0,0.00010545,2]
[348950847,1736889046631,-528.66946751,0.00010545,2]
[348950848,1736889046641,-2544.68,0.00010545,2]
[348950849,1736889046651,-613.12,0.00010545,2]
[348950850,1736889046660,-500.0,0.00010545,2]
[348950851,1736889046670,-500.0,0.00010545,2]
[348950852,1736889046679,-500.0,0.00010545,2]
[348950853,1736889046689,-328.39689333,0.00010545,2]
[348950854,1736889046699,-500.0,0.00010545,2]
[348950855,1736889046710,-248.73293838,0.00010545,2]
[348950856,1736889046719,-500.0,0.00010545,2]
[348950857,1736889046729,-2143.33,0.00010545,2]
[348950858,1736889046740,-500.0,0.00010545,2]
[348950859,1736889046749,-500.0,0.00010545,2]
[348950860,1736889046759,-500.0,0.00010545,2]
[348950861,1736889046769,-500.0,0.00010545,2]
[348950862,1736889046778,-500.0,0.00010545,2]
[348950863,1736889046787,-500.0,0.00010545,2]
[348950864,1736889046796,-500.0,0.00010545,2]
[348950865,1736889046805,-500.0,0.00010545,2]
[348950866,1736889046815,-500.0,0.00010545,2]
[348950867,1736889046824,-1261.69,0.00010545,2]
[348950868,1736889046833,-616.72,0.00010545,2]
[348950869,1736889046843,-500.0,0.00010545,2]
[348950870,1736889046852,-500.0,0.00010545,2]
[348950871,1736889046862,-500.0,0.00010545,2]
[348950872,1736889046871,-500.0,0.00010545,2]
[348950873,1736889046881,-506.09,0.00010545,2]
[348950874,1736889046891,-500.0,0.00010545,2]
[348950875,1736889046900,-500.0,0.00010545,2]
[348950876,1736889046909,-500.0,0.00010545,2]
[348950877,1736889046918,-500.0,0.00010545,2]
[348950878,1736889046927,-500.0,0.00010545,2]
[348950879,1736889046937,-515.65,0.00010545,2]
[348950880,1736889046947,-500.0,0.00010545,2]
[348950881,1736889046956,-2194.0,0.00010545,2]
[348950882,1736889046965,-683.79,0.00010545,2]
[348950883,1736889046974,-500.0,0.00010545,2]
[348950884,1736889046983,-500.0,0.00010545,2]
[348950885,1736889046992,-570.38249328,0.00010545,2]
[348950886,1736889047002,-997.51,0.00010545,2]
[348950887,1736889047011,-500.0,0.00010545,2]
[348950888,1736889047020,-500.0,0.00010545,2]
[348950889,1736889047029,-500.0,0.00010545,2]
[348950890,1736889047038,-579.57,0.00010545,2]
[348950891,1736889047047,-500.0,0.00010545,2]
[348950892,1736889047057,-500.0,0.00010545,2]
[348950893,1736889047066,-500.0,0.00010545,2]
[348950894,1736889047075,-1805.76,0.00010545,2]
[348950895,1736889047085,-745.52,0.00010545,2]
[348950896,1736889047094,-500.0,0.00010545,2]
[348950897,1736889047104,-637.03,0.00010545,2]
[348950898,1736889047113,-500.0,0.00010545,2]
[348950899,1736889047122,-500.0,0.00010545,2]
[348950900,1736889047131,-500.0,0.00010545,2]
[348950901,1736889047141,-1373.49,0.00010545,2]
[348950902,1736889047150,-590.18,0.00010545,2]
[348950903,1736889047159,-961.15,0.00010545,2]
[348950904,1736889047169,-3899.66,0.00010545,2]
[348950905,1736889047178,-500.0,0.00010545,2]
[348950906,1736889047187,-500.0,0.00010545,2]
[348950907,1736889047196,-500.0,0.00010545,2]
[348950908,1736889047205,-646.45,0.00010545,2]
[348950909,1736889047214,-520.28,0.00010545,2]
[348950910,1736889047223,-438.5765008,0.00010545,2]
[348950911,1736889047232,-500.0,0.00010545,2]
[348950912,1736889047242,-500.0,0.00010545,2]
[348950913,1736889047252,-500.0,0.00010545,2]
[348950914,1736889047262,-500.0,0.00010545,2]
[348950915,1736889047272,-634.35,0.00010545,2]
[348950916,1736889047282,-500.0,0.00010545,2]
[348950917,1736889047292,-834.71,0.00010545,2]
[348950918,1736889047304,-718.77,0.00010545,2]
[348950919,1736889047314,-626.29,0.00010545,2]
[348950920,1736889047324,-509.46,0.00010545,2]
[348950921,1736889047334,-500.0,0.00010545,2]
[348950922,1736889047344,-500.0,0.00010545,2]
[348950923,1736889047353,-500.0,0.00010545,2]
[348950924,1736889047362,-500.0,0.00010545,2]
[348950925,1736889047373,-500.0,0.00010545,2]
[348950926,1736889047382,-1180.4,0.00010545,2]
[348950927,1736889047393,-500.0,0.00010545,2]
[348950928,1736889047403,-1328.71,0.00010545,2]
[348950929,1736889047413,-500.0,0.00010545,2]
[348950930,1736889047423,-500.0,0.00010545,2]
[348950931,1736889047432,-500.0,0.00010545,2]
[348950932,1736889047441,-2819.76,0.00010545,2]
[348950933,1736889047450,-2416.88,0.00010545,2]
[348950934,1736889047460,-500.0,0.00010545,2]
[348950935,1736889047471,-1337.68,0.00010545,2]
[348950936,1736889047482,-500.0,0.00010545,2]
[348950937,1736889047492,-902.28,0.00010545,2]
[348950938,1736889047502,-549.52,0.00010545,2]
[348950939,1736889047512,-500.0,0.00010545,2]
[348950940,1736889047522,-746.11,0.00010545,2]
[348950941,1736889047531,-500.0,0.00010545,2]
[348950942,1736889047541,-1458.52,0.00010545,2]
[348950943,1736889047551,-500.0,0.00010545,2]
[348950944,1736889047561,-1031.97,0.00010545,2]
[348950945,1736889047574,-811.67,0.00010545,2]
[348950946,1736889047584,-500.0,0.00010545,2]
[348950947,1736889047594,-791.8,0.00010545,2]
[348950948,1736889047658,-500.0,0.00010545,2]
[348950949,1736889047667,-1951.46,0.00010545,2]
[348950950,1736889047676,-666.04,0.00010545,2]
[348950951,1736889047684,-904.14,0.00010545,2]
[348950952,1736889047695,-500.0,0.00010545,2]
[348950953,1736889047704,-1390.08,0.00010545,2]
[348950954,1736889047714,-564.24,0.00010545,2]
[348950955,1736889047722,-1622.18,0.00010545,2]
[348950956,1736889047731,-1177.2,0.00010545,2]
[348950957,1736889047741,-849.08,0.00010545,2]
[348950958,1736889047751,-500.0,0.00010545,2]
[348950959,1736889047762,-500.0,0.00010545,2]
[348950960,1736889047776,-2184.92,0.00010545,2]
[348950961,1736889047786,-500.0,0.00010545,2]
[348950962,1736889047795,-500.0,0.00010545,2]
[348950963,1736889047804,-915.88,0.00010545,2]
[348950964,1736889047814,-887.61,0.00010545,2]
[348950965,1736889047823,-500.0,0.00010545,2]
[348950966,1736889047833,-500.0,0.00010545,2]
[348950967,1736889047842,-644.34,0.00010545,2]
[348950968,1736889047851,-500.0,0.00010545,2]
[348950969,1736889047864,-500.0,0.00010545,2]
[348950970,1736889047874,-608.71,0.00010545,2]
[348950971,1736889047883,-500.0,0.00010545,2]
[348950972,1736889047892,-500.0,0.00010545,2]
[348950973,1736889047902,-865.61,0.00010545,2]
[348950974,1736889047912,-1114.79,0.00010545,2]
[348950975,1736889047921,-3425.73,0.00010545,2]
[348950976,1736889047930,-500.0,0.00010547,2]
[348950977,1736889047940,-541.2,0.00010547,2]
[348950978,1736889047951,-1511.81,0.00010547,2]
[348950979,1736889047961,-709.29,0.00010547,2]
[348950980,1736889047971,-500.0,0.00010547,2]
[348950981,1736889047980,-500.0,0.00010547,2]
[348950982,1736889047990,-429.93842545,0.00010629,2]
[348950983,1736889047999,-1000.0,0.0001066,2]
[348950984,1736889048008,-1928.70295496,0.00010728,2]
[348950985,1736889048017,-3000.0,0.0001075,2]
[348950986,1736889048027,-429.93842545,0.00010766,2]
[348950987,1736889048036,-157.38,0.00010785,2]
[348950988,1736889048045,-157.9438261,0.00010785,2]
[348950989,1736889048055,-500.0,0.00010812,2]
[348950990,1736889048065,-500.0,0.00010813,2]
[348950991,1736889048074,-500.0,0.00010813,2]
[348950992,1736889048083,-500.0,0.00010813,2]
[348950993,1736889048092,-500.0,0.00010813,2]
[348950994,1736889048101,-500.0,0.00010813,2]
[348950995,1736889048110,-638.87,0.00010813,2]
[348950996,1736889048120,-790.07,0.00010813,2]
[348950997,1736889048130,-735.53,0.00010813,2]
[348950998,1736889048139,-2063.18,0.00010813,2]
[348950999,1736889048148,-4329.64,0.00010813,2]
[348951000,1736889048158,-661.5,0.00010813,2]
[348951001,1736889048167,-500.0,0.00010813,2]
[348951002,1736889048176,-500.0,0.00010813,2]
[348951003,1736889048185,-1425.91,0.00010813,2]
[348951004,1736889048194,-500.0,0.00010813,2]
[348951005,1736889048203,-606.11,0.00010813,2]
[348951006,1736889048216,-839.24,0.00010813,2]
[348951007,1736889048225,-1095.49,0.00010813,2]
[348951008,1736889048234,-500.0,0.00010813,2]
[348951009,1736889048244,-1000.0,0.00010813,2]
[348951010,1736889048253,-1628.9,0.00010813,2]
[348951011,1736889048263,-1628.9,0.00010813,2]
[348951012,1736889048272,-1052.35,0.00010813,2]
[348951013,1736889048281,-500.0,0.00010819,2]
[348951014,1736889048291,-500.0,0.00010819,2]
[348951015,1736889048300,-558.26,0.00010819,2]
[348951016,1736889048310,-500.0,0.00010819,2]
[348951017,1736889048320,-500.0,0.00010819,2]
[348951018,1736889048330,-500.0,0.00010819,2]
[348951019,1736889048339,-500.0,0.00010819,2]
[348951020,1736889048349,-874.13,0.00010819,2]
[348951021,1736889048358,-537.73,0.00010819,2]
[348951022,1736889048368,-573.18,0.00010819,2]
[348951023,1736889048378,-500.0,0.00010819,2]
[348951024,1736889048388,-960.98,0.00010819,2]
[348951025,1736889048397,-500.0,0.00010819,2]
[348951026,1736889048406,-500.0,0.00010819,2]
[348951027,1736889048416,-500.0,0.00010819,2]
[348951028,1736889048425,-1585.52,0.00010819,2]
[348951029,1736889048434,-500.0,0.00010819,2]
[348951030,1736889048443,-500.0,0.00010819,2]
[348951031,1736889048453,-500.0,0.00010819,2]
[348951032,1736889048462,-500.0,0.00010819,2]
[348951033,1736889048471,-878.16,0.00010819,2]
[348951034,1736889048480,-500.0,0.00010819,2]
[348951035,1736889048490,-500.0,0.00010819,2]
[348951036,1736889048499,-500.0,0.00010819,2]
[348951037,1736889048509,-500.0,0.00010819,2]
[348951038,1736889048519,-663.982168,0.00010819,2]
[348951039,1736889048528,-736.51,0.00010819,2]
[348951040,1736889048539,-500.0,0.00010819,2]
[348951041,1736889048549,-500.0,0.00010819,2]
[348951042,1736889048560,-500.0,0.00010819,2]
[348951043,1736889048576,-562.02,0.00010819,2]
[348951044,1736889048586,-500.0,0.00010819,2]
[348951045,1736889048597,-500.0,0.00010819,2]
[348951046,1736889048607,-654.425542,0.00010819,2]
[348951047,1736889048617,-1516.14,0.00010819,2]
[348951048,1736889048629,-500.0,0.00010819,2]
[348951049,1736889048639,-500.0,0.00010819,2]
[348951050,1736889048650,-2415.41,0.00010819,2]
[348951051,1736889048662,-266.91,0.00010819,2]
[348951052,1736889048672,-589.3,0.00010819,2]
[348951053,1736889048683,-500.0,0.00010819,2]
[348951054,1736889048693,-792.69,0.00010819,2]
[348951055,1736889048705,-500.0,0.00010819,2]
[348951056,1736889048715,-609.48,0.00010819,2]
[348951057,1736889048725,-500.0,0.00010819,2]
[348951058,1736889048736,-756.05,0.00010819,2]
[348951059,1736889048746,-500.0,0.00010819,2]
[348951060,1736889048756,-273.70403453,0.00010819,2]
[348951061,1736889048766,-500.0,0.00010819,2]
[348951062,1736889048776,-2019.75,0.00010819,2]
[348951063,1736889048787,-544.83,0.00010819,2]
[348951064,1736889048798,-500.0,0.00010819,2]
[348951065,1736889048808,-629.54,0.00010819,2]
[348951066,1736889048820,-2544.68,0.00010819,2]
[348951067,1736889048830,-613.12,0.00010819,2]
[348951068,1736889048840,-500.0,0.00010819,2]
[348951069,1736889048852,-500.0,0.00010819,2]
[348951070,1736889048863,-500.0,0.00010819,2]
[348951071,1736889048874,-500.0,0.00010819,2]
[348951072,1736889048885,-2143.33,0.00010819,2]
[348951073,1736889048896,-500.0,0.00010819,2]
[348951074,1736889048907,-500.0,0.00010819,2]
[348951075,1736889048917,-500.0,0.00010819,2]
[348951076,1736889048928,-500.0,0.00010819,2]
[348951077,1736889048938,-500.0,0.00010819,2]
[348951078,1736889048949,-500.0,0.00010819,2]
[348951079,1736889048958,-1261.69,0.00010819,2]
[348951080,1736889048968,-500.0,0.00010819,2]
[348951081,1736889048979,-500.0,0.00010819,2]
[348951082,1736889048989,-500.0,0.00010819,2]
[348951083,1736889048999,-500.0,0.00010819,2]
[348951084,1736889049009,-506.09,0.00010819,2]
[348951085,1736889049019,-500.0,0.00010819,2]
[348951086,1736889049029,-500.0,0.00010819,2]
[348951087,1736889049040,-500.0,0.00010819,2]
[348951088,1736889049051,-511.29238355,0.00010819,2]
[348951089,1736889049062,-500.0,0.00010819,2]
[348951090,1736889049072,-515.65,0.00010819,2]
[348951091,1736889049082,-500.0,0.00010819,2]
[348951092,1736889049093,-2194.0,0.00010819,2]
[348951093,1736889049104,-683.79,0.00010819,2]
[348951094,1736889049115,-500.0,0.00010819,2]
[348951095,1736889049126,-500.0,0.00010819,2]
[348951096,1736889049137,-997.51,0.00010819,2]
[348951097,1736889049147,-500.0,0.00010819,2]
[348951098,1736889049158,-500.0,0.00010819,2]
[348951099,1736889049168,-579.57,0.00010819,2]
[348951100,1736889049178,-500.0,0.00010819,2]
[348951101,1736889049188,-500.0,0.00010819,2]
[348951102,1736889049199,-500.0,0.00010819,2]
[348951103,1736889049210,-1805.76,0.00010819,2]
[348951104,1736889049221,-745.52,0.00010819,2]
[348951105,1736889049231,-637.03,0.00010819,2]
[348951106,1736889049241,-500.0,0.00010819,2]
[348951107,1736889049252,-538.98,0.00010819,2]
[348951108,1736889049262,-1373.49,0.00010819,2]
[348951109,1736889049272,-590.18,0.00010819,2]
[348951110,1736889049284,-961.15,0.00010819,2]
[348951111,1736889049295,-3899.66,0.00010819,2]
[348951112,1736889049305,-500.0,0.00010819,2]
[348951113,1736889049316,-500.0,0.00010819,2]
[348951114,1736889049326,-646.45,0.00010819,2]
[348951115,1736889049336,-520.28,0.00010819,2]
[348951116,1736889049347,-500.0,0.00010819,2]
[348951117,1736889049357,-500.0,0.00010819,2]
[348951118,1736889049367,-500.0,0.00010819,2]
[348951119,1736889049380,-500.0,0.00010819,2]
[348951120,1736889049391,-634.35,0.00010819,2]
[348951121,1736889049401,-500.0,0.00010819,2]
[348951122,1736889049412,-718.77,0.00010819,2]
[348951123,1736889049422,-500.0,0.00010819,2]
[348951124,1736889049432,-500.0,0.00010819,2]
[348951125,1736889049443,-450.76,0.00010819,2]
[348951126,1736889049457,-500.0,0.00010819,2]
[348951127,1736889049468,-500.0,0.00010819,2]
[348951128,1736889049480,-1180.4,0.00010819,2]
[348951129,1736889049491,-1328.71,0.00010819,2]
[348951130,1736889049503,-500.0,0.00010819,2]
[348951131,1736889049514,-500.0,0.00010819,2]
[348951132,1736889049526,-500.0,0.00010819,2]
[348951133,1736889049536,-2819.76,0.00010819,2]
[348951134,1736889049546,-2416.88,0.00010819,2]
[348951135,1736889049557,-500.0,0.00010819,2]
[348951136,1736889049570,-1337.68,0.00010819,2]
[348951137,1736889049581,-500.0,0.00010819,2]
[348951138,1736889049593,-902.28,0.00010819,2]
[348951139,1736889049605,-549.52,0.00010819,2]
[348951140,1736889049617,-500.0,0.00010819,2]
[348951141,1736889049628,-746.11,0.00010819,2]
[348951142,1736889049639,-500.0,0.00010819,2]
[348951143,1736889049654,-1458.52,0.00010819,2]
[348951144,1736889049664,-500.0,0.00010819,2]
[348951145,1736889049675,-1031.97,0.00010819,2]
[348951146,1736889049685,-811.67,0.00010819,2]
[348951147,1736889049696,-500.0,0.00010819,2]
[348951148,1736889049707,-791.8,0.00010819,2]
[348951149,1736889049718,-500.0,0.00010819,2]
[348951150,1736889049728,-1951.46,0.00010819,2]
[348951151,1736889049739,-666.04,0.00010819,2]
[348951152,1736889049754,-904.14,0.00010819,2]
[348951153,1736889049767,-500.0,0.00010819,2]
[348951154,1736889049781,-1390.08,0.00010819,2]
[348951155,1736889049794,-564.24,0.00010819,2]
[348951156,1736889049805,-1622.18,0.00010819,2]
[348951157,1736889049817,-1177.2,0.00010819,2]
[348951158,1736889049829,-849.08,0.00010819,2]
[348951159,1736889049842,-500.0,0.00010819,2]
[348951160,1736889049854,-500.0,0.00010819,2]
[348951161,1736889049867,-2184.92,0.00010819,2]
[348951162,1736889049880,-500.0,0.00010819,2]
[348951163,1736889049893,-500.0,0.00010819,2]
[348951164,1736889049906,-915.88,0.00010819,2]
[348951165,1736889049918,-887.61,0.00010819,2]
[348951166,1736889049929,-500.0,0.00010819,2]
[348951167,1736889049940,-644.34,0.00010819,2]
[348951168,1736889049952,-500.0,0.00010819,2]
[348951169,1736889049966,-501.64,0.00010819,2]
[348951170,1736889049978,-608.71,0.00010819,2]
[348951171,1736889049991,-500.0,0.00010819,2]
[348951172,1736889050004,-500.0,0.00010819,2]
[348951173,1736889050016,-500.0,0.00010821,2]
[348951174,1736889050029,-541.2,0.00010821,2]
[348951175,1736889050041,-1511.81,0.00010821,2]
[348951176,1736889050054,-709.29,0.00010821,2]
[348951177,1736889050065,-500.0,0.00010821,2]
[348951178,1736889050078,-500.0,0.00010821,2]
[348951179,1736889050092,-255.0,0.00010886,2]
[348951180,1736889050104,-420.0,0.00010886,2]
[348951181,1736889050116,-467.72283777,0.000109,2]
[348951182,1736889050127,-184.6577686,0.000109,2]
[348951183,1736889050139,-499.55482685,0.00010973,2]
[348951184,1736889050150,-150.87928755,0.00010973,2]
[348951185,1736889050162,-261.4084419,0.00010973,2]
[348951186,1736889050175,-160.87129337,0.00010973,2]
[348951187,1736889050189,-500.0,0.00010973,2]
[348951188,1736889050201,-3970.75760939,0.00010982,2]
[348951189,1736889050213,-999.0,0.00010999,2]
[348951190,1736889050226,-500.0,0.00010999,2]
[348951191,1736889050237,-500.0,0.00010999,2]
[348951192,1736889050247,-500.0,0.00010999,2]
[348951193,1736889050259,-500.0,0.00010999,2]
[348951194,1736889050270,-500.0,0.00010999,2]